Cogmind - Beta 13 @@@ ROGUE MODE // 2024.05.25 @ 11:37:47 Player: KoT Result: Destroyed by Y-45 Defender with Heavy Assault Rifle Performance ------------- Evolutions (1) 500 Regions Visited (2) 400 Robots Destroyed (8) 40 Value Destroyed (187) 187 Prototype IDs (0) 0 Alien Tech Used (0) 0 Bonus (200) 200 TOTAL SCORE: 1327 Bonus ------- Pacifist 200 Cogmind --------- Core Integrity 0/400 Matter 165/300 Energy 2/100 System Corruption 0% Temperature Warning (301) Movement Core (50) Location -9/Materials Parts ------- > --- POWER (1) -------- (None) > --- PROPULSION (2) --- (None) > --- UTILITY (3) ------ Small Storage Unit Weight Redist. System Improved Targeting Computer > --- WEAPON (3) ------- (None) > --- INVENTORY (8) ---- Aluminum Leg Weight Redist. System Weight Redist. System Shield Generator Peak State ------------ > --- POWER ------------ Ion Engine > --- PROPULSION ------- Flight Unit > --- UTILITY ---------- Small Storage Unit Weight Redist. System Improved Targeting Computer > --- WEAPON ----------- Field Laser > --- INVENTORY -------- Aluminum Leg Weight Redist. System Weight Redist. System Shield Generator [Rating: 10] Favorites ----------- Power Ion Engine Engine Ion Engine Propulsion Aluminum Leg Treads Light Treads Leg Aluminum Leg Wheel Wheel Flight Unit Flight Unit Utility Improved Targeting Computer Device Shield Generator Storage Small Storage Unit Processor Improved Targeting Computer Weapon Heavy Assault Rifle Energy Gun Field Laser Ballistic Gun Heavy Assault Rifle Build | -11 -10 -9 ------- Run | Yrd Mat Mat Slots Evolved 2 | . . 2 Power . | . . . Propulsion . | . . . Utility 1 | . . 1 Weapon 1 | . . 1 Parts Attached 19 | 6 1 12 Power 3 | 1 . 2 Engine 3 | 1 . 2 Core . | . . . Reactor . | . . . Propulsion 8 | 5 . 3 Treads 1 | 1 . . Leg 3 | 2 . 1 Wheel 2 | 2 . . Hover . | . . . Flight 2 | . . 2 Utility 5 | . 1 4 Device 2 | . . 2 Storage 2 | . . 2 Processor 1 | . 1 . Hackware . | . . . Protection . | . . . Artifact . | . . . Weapon 3 | . . 3 Energy Gun 2 | . . 2 Energy Cannon . | . . . Ballistic Gun 1 | . . 1 Ballistic Cannon . | . . . Launcher . | . . . Special Weapon . | . . . Impact Weapon . | . . . Slashing Weapon . | . . . Piercing Weapon . | . . . Special Melee Weapon . | . . . Unidentified Prototypes . | . . . Parts Lost 5 | . . 5 Power 1 | . . 1 Propulsion 2 | . . 2 Utility . | . . . Weapon 2 | . . 2 Highest Loss Streak 4 | . . 4 To Critical Strikes . | . . . Average Slot Usage (%) 33 | . . 39 Engine 4 | . . 4 Leg 2 | . . 3 Flight 1 | . . 1 Device 4 | . . 5 Storage 4 | . . 5 Processor 9 | . . 11 Ballistic Gun 5 | . . 6 Naked Turns 58 | . 58 . Heaviest Build 15 | 5 . 15 Greatest Support 26 | 26 3 10 Greatest Overweight (x) 1 | 1 . 1 Average Overweight (x) . | . . . Largest Inventory Capacity 8 | 5 5 8 Average Capacity 6 | 5 5 6 Most Carried 6 | 5 5 6 Average Carried 3 | 3 4 3 Final Capacity 8 | 5 5 8 Final Carried 5 | 5 5 4 Class Distribution -------------------- 100% | Mutant Dominant Class ---------------- Mutant | -10/Materials Mutant | -9/Materials Resources | -11 -10 -9 ----------- Run | Yrd Mat Mat Matter Collected 299 | 164 . 135 Remotely . | . . . Salvage Created 233 | . . 233 Parts 18 | . . 18 Haulers Intercepted . | . . . Recyclers Shooed . | . . . Parts Field Recycled . | . . . Retrieved Matter . | . . . Parts Self-Destructed . | . . . Prevented . | . . . Kills | -11 -10 -9 ------- Run | Yrd Mat Mat Combat Hostiles Destroyed 8 | . . 8 Guns 8 | . . 8 Classes Destroyed 3 | . . 3 Swarmer 4 | . . 4 Grunt 3 | . . 3 Sentry 1 | . . 1 Best Kill Streak 4 | . . 4 Combat Bots Only 4 | . . 4 Max Kills in Single Turn 1 | . . 1 Gunslinging . | . . . Exploded . | . . . Melee . | . . . Uniques/NPCs Destroyed . | . . . Combat | -11 -10 -9 -------- Run | Yrd Mat Mat Hostile Shots Fired 100 | . . 100 Missed 28 | . . 28 Damage Taken 845 | . . 845 Core 405 | . . 405 Absorbed by Shields 26 | . . 26 Core Remaining (%) 100 | 100 100 . Volleys Fired 49 | . . 49 Largest 1 | . . 1 Hottest 63 | . . 63 Shots Fired 49 | . . 49 Gun 49 | . . 49 Cannon . | . . . Launcher . | . . . Special . | . . . Kinetic 30 | . . 30 Thermal 19 | . . 19 Explosive . | . . . Electromagnetic . | . . . Robot Hit Streak 8 | . . 8 Robot Miss Streak 3 | . . 3 Penetration Max . | . . . Secondary Targets . | . . . Shots Hit Robots 32 | . . 32 Core Hits 11 | . . 11 Critical Kills . | . . . Critical Parts Destroyed . | . . . Critical Strikes 1 | . . 1 Burn 1 | . . 1 Melee Attacks . | . . . Impact . | . . . Slashing . | . . . Piercing . | . . . Sneak Attacks . | . . . Combat Hostiles . | . . . Follow-up Attacks . | . . . Damage Inflicted 544 | . . 544 Guns 517 | . . 517 Cannons . | . . . Explosions . | . . . Melee . | . . . Ramming 27 | . . 27 Kinetic 316 | . . 316 Thermal 201 | . . 201 Explosive . | . . . Electromagnetic . | . . . Impact . | . . . Slashing . | . . . Piercing . | . . . Highest Corruption . | . . . Average Corruption . | . . . Corruption Purged . | . . . Corruption Blocked . | . . . Overload Shots . | . . . Overflow Damage . | . . . Projectiles . | . . . Explosions . | . . . Melee . | . . . Knockbacks . | . . . Impact . | . . . Kinetic . | . . . Secondary . | . . . Self-Inflicted Damage 13 | . . 13 Shots . | . . . Rammed 6 | . . 6 Targets Rammed 6 | . . 6 Kicked . | . . . Crushed . | . . . Highest Temperature 283 | . . 283 Average Temperature 122 | . . 122 Received Heat Transfer 253 | . . 253 Siege Activations . | . . . Robots Corrupted . | . . . Combat Hostiles . | . . . Parts Fried . | . . . Impact Corruptions . | . . . Robots Melted . | . . . Combat Hostiles . | . . . Parts Melted . | . . . Heat Transferred 518 | . . 518 Parts Sabotaged . | . . . Parts Stolen . | . . . Parts Stripped . | . . . Power Chain Reactions . | . . . Alert | -11 -10 -9 ------- Run | Yrd Mat Mat Peak Influence 325 | . . 325 Initial . | . . . Average 81 | . . 126 Maximum Alert Level 1 | . . 1 Low Security (%) 80 | 100 100 70 Level 1 19 | . . 29 Level 2 . | . . . Level 3 . | . . . Level 4 . | . . . Level 5 . | . . . High Security . | . . . Max Security . | . . . Squads Dispatched 1 | . . 1 Investigation . | . . . Extermination . | . . . Reinforcement 1 | . . 1 Assault . | . . . Garrison . | . . . Intercept . | . . . Searches Triggered . | . . . Construction Impeded . | . . . Haulers Reinforced . | . . . Active Scanning Responses . | . . . Cargo Convoy Interrupts . | . . . Stealth | -11 -10 -9 --------- Run | Yrd Mat Mat Distress Signals 2 | . . 2 Communications Jammed . | . . . Distress Signals . | . . . Times Spotted 26 | . . 26 Peak Tracking Total 8 | . . 8 Tactical Retreats 3 | . . 3 Traps | -11 -10 -9 ------- Run | Yrd Mat Mat Traps Triggered . | . . . Indirectly . | . . . Trap Hack Attempts . | . . . Triggered . | . . . Disarmed . | . . . Reprogrammed . | . . . Reused . | . . . Traps Extracted . | . . . Installed . | . . . Triggered . | . . . Machines | -11 -10 -9 ---------- Run | Yrd Mat Mat Machines Disabled . | . . . Max in Single Turn . | . . . Machines Repaired . | . . . Machines Dismantled . | . . . Machines Sabotaged . | . . . Overloaded Fab Kills . | . . . Hacking | -11 -10 -9 --------- Run | Yrd Mat Mat Machines Accessed 3 | . 1 2 Terminals 3 | . 1 2 Fabricators . | . . . Repair Stations . | . . . Recycling Units . | . . . Scanalyzers . | . . . Garrison Access . | . . . Total Hacks 7 | . 2 5 Successful 5 | . 1 4 Failed 2 | . 1 1 Catastrophic . | . . . Database Lockouts . | . . . Manual . | . . . Terminals 7 | . 2 5 Fabricators . | . . . Repair Stations . | . . . Recycling Units . | . . . Scanalyzers . | . . . Garrison Access . | . . . Terminal Hacks 5 | . 1 4 Record 1 | . . 1 Locate Traps 1 | . . 1 Hauler Manifests 1 | . . 1 Registered Components 1 | . . 1 Zone Layout 1 | . 1 . Fabricator Hacks . | . . . Repair Station Hacks . | . . . Recycling Unit Hacks . | . . . Scanalyzer . | . . . Garrison Access Hacks . | . . . Unauthorized Hacks . | . . . Terminals . | . . . Fabricators . | . . . Repair Stations . | . . . Recycling Units . | . . . Scanalyzers . | . . . Garrison Access . | . . . Data Cores Recovered . | . . . Used . | . . . Hacking Detections 1 | . 1 . Full Trace Events . | . . . Feedback Events . | . . . Feedback Blocked . | . . . Robot Schematics Acquired . | . . . Robots Built . | . . . Authchips . | . . . Time . | . . . Total Robot Build Rating . | . . . Part Schematics Acquired . | . . . Parts Built . | . . . Authchips . | . . . Time . | . . . Total Part Build Rating . | . . . Parts Repaired . | . . . Time . | . . . Parts Recycled . | . . . Recycled Matter . | . . . Retrieved Matter . | . . . Retrieved Components . | . . . Parts Scanalyzed . | . . . Part Schematics Acquired . | . . . Parts Damaged . | . . . Bothacking | -11 -10 -9 ------------ Run | Yrd Mat Mat Used RIF Installer . | . . . Robots Hacked . | . . . Non-combat . | . . . Combat . | . . . Robot Hacks Applied . | . . . Relay Couplers Released . | . . . Fabnet Peak Effective % . | . . . Robots Rewired . | . . . Allies Hacked . | . . . Hacks Repelled . | . . . Allies | -11 -10 -9 -------- Run | Yrd Mat Mat Total Allies . | . . . Largest Group . | . . . Highest-Rated Group . | . . . Highest-Rated Ally . | . . . Total Orders . | . . . Ally Attacks . | . . . Total Damage . | . . . Kills . | . . . Allies Corrupted . | . . . Allies Melted . | . . . Intel | -11 -10 -9 ------- Run | Yrd Mat Mat Robot Analysis Total . | . . . Derelict Logs Recovered . | . . . Drone Launches . | . . . Drone Recoveries . | . . . Exploration | -11 -10 -9 ------------- Run | Yrd Mat Mat Turns Passed 488 | 111 63 314 Spaces Moved 517 | 108 120 289 Core 328 | 50 120 158 Treads 9 | 9 . . Legs 53 | 14 . 39 Wheels 35 | 35 . . Hover . | . . . Flight 92 | . . 92 Fastest Speed 40 | 50 50 40 Average Speed 65 | 81 50 65 Slowest Speed 190 | 160 50 190 Overloaded Moves . | . . . Propulsion Burnouts . | . . . Robots Hopped 1 | . . 1 Cave-ins Triggered . | . . . Exploration Rate (%) 17 | 4 16 33 Regions Visited 2 Branch Regions . Pre-discovered Areas . | . . . Known Exits Taken . | . . . Unknown Exits Taken 2 | 1 1 . Scrap Searched . | . . . Spaces Dug . | . . . Terrain Destroyed . | . . . Melee . | . . . Projectile . | . . . AOE . | . . . Terrain Rammed . | . . . Walls Destroyed . | . . . Machines Disabled . | . . . Actions | -11 -10 -9 --------- Run | Yrd Mat Mat Total 623 | 132 122 369 Wait 7 | 6 . 1 Move 513 | 107 119 287 Hop 1 | . . 1 Pick Up 15 | 7 1 7 Fast Attach 3 | 2 1 . Attach 16 | 4 . 12 Detach 7 | 2 . 5 Swap . | . . . Drop 6 | 4 1 1 Fire 49 | . . 49 Melee . | . . . Ram 6 | . . 6 Kick . | . . . Crush . | . . . Escape Stasis . | . . . Rewire . | . . . Trap . | . . . Miscellaneous . | . . . Route ------- -11/Scrapyard -10/Materials (discovered 2 exits: *Mat / [Min]) -9/Materials History --------- Turn | Location | Event 11 | -11/Scrapyard | Discovered new exit (range 15) 112 | -11/Scrapyard | Entered Materials 121 | -10/Materials | Discovered new exit (range 8) 162 | -10/Materials | Discovered new exit (range 4) 175 | -10/Materials | Entered another Materials area 175 | -9/Materials | Evolved 2 slots: Utility x1, Weapon x1 300 | -9/Materials | Build established: Mutant 398 | -9/Materials | Core integrity fell below 50% 481 | -9/Materials | Core integrity fell below 20% 489 | -9/Materials | Destroyed by Y-45 Defender with Heavy Assault Rifle Last Messages --------------- 00394_ Imp. Targeting Computer temporarily disabled. 00405_ M-13 Machinist repairs Flight Unit. 00412_ Acquired Weight Redist. System. 00427_ Acquired Field Laser. 00430_ Flight Unit destroyed. 00435_ S-10 Pest destroyed. 00437_ Acquired 20 matter. 00438_ W-16 Scout sends out distress signal. 00439_ Acquired Flight Unit. 00440_ G-34 Mercenary destroyed. 00442_ Acquired 37 matter. 00460_ Flight Unit destroyed. 00460_ Critical hit (Burn: +37). 00463_ G-34 Mercenary destroyed. 00474_ R-06 Scavenger collects Sml. Laser. 00477_ Ion Engine destroyed. 00481_ Y-45 Defender suffers critical hit (Burn). 00489_ Field Laser destroyed. Map ----- +----------------------------------------------------+ | ??????????????????????????????????????????????# | | ??????????????????????????????????????????????# | | ??????????????????????????????????????????????# | | ??????????????????????????????????????????????# | | ??????????????????????????????????????????????# | | ??????????????????????????????????????????????# | | ??????????????????????????????????????????????# | | ????????????????????????????????????########### | | ????????????????????????????????????# # | | ????????????????????????????????????# # | | ????????????????????????????????????# # | | ????????????????????????????????????# + | | ?????????????????????????############ # | | ?????????????????????????# + ### | | ??????????????????#??????# #### #?# | | ??????????????????# ?????# #??# #?# | | ??????????????????# ?????# #??###########?# | | ????????????????#?? ????# #??????????????# | | ????????????????# ##+##### #??????????????# | | ????????????????# ##+##+##?????????????# | | ????????????????# # #?????????##### | | ????????????????? %g#""" #?????????#[ = | | ?????????????????? #""" #?????????#[[ * | | ????????????????????### #""" #?????????#!! | | ??????????????????????# #""" #?????????#!! | | ??????????????????????#w @ ; #?????????#[[ | | ??????????????????????#/##Y########?????????#[[ | | ?????????????????????????# #????????????????##### | | ?????????????????????????+ #????????????????????# | | ?????????????????????????# #????????????????????# | | ?????????????????????????# #????????????????????? | | ?????????????????????????# #????????????????????? | | ?????????????????????????# #????????????????????? | | ?????????????????????????# #????????????????????? | | ?????????????????????????? ?????????????????????? | | ?????????????????????????? ?????????????????????? | | ?????????????????????????? ?????????????????????? | | ?????????????????????????? ??????????????????????? | | ?????????????????????????? ??????????????????????? | | ?????????????????????????? ??????????????????????? | | ?????????????????????????? ??????????????????????? | | ?????????????????????????????????????????????????? | | ?????????????????????????????????????????????????? | | ?????????????????????????????????????????????????? | | ?????????????????????????????????????????????????? | | ?????????????????????????????????????????????????? | | ?????????????????????????????????????????????????? | | ?????????????????????????????????????????????????? | | ?????????????????????????????????????????????????? | | ?????????????????????????????????????????????????? | +----------------------------------------------------+ Best States ------------- Heat Dissipation 28 Energy Generation 10 Energy Capacity 250 Matter Stores 204 Matter Capacity 300 Sight Range 16 Terrain Scan Density 10 Additional Mass Support 6 Evasion (%) 62 Targeting Accuracy 6 Recoil Reduction 1 Item Schematics ----------------- None Robot Schematics ------------------ None Fabricated ------------ Nothing Alien Tech Used ----------------- None Achievements -------------- None Challenges ------------ None Game ------ Seed SlugCobblerHumpback Manual? 0 Play Time 00:12:48 Cumulative 27.6 hours Start 2024.05.25 @ 11:20:16 End 2024.05.25 @ 11:37:47 Sessions 1 Manual Loads 0 Difficulty Rogue Special Mode None Game No. 40 Rogue 40 Adventurer 0 Explorer 0 Win Type - Total 0 Types 0/0/0/0/0/0/0/0/0 Lore% 26 Gallery% 26 Achievement% 25 Wizard Run 0 Options --------- Layout 1 ASCII 0 Keyboard 0 Movement Mouse Keybinds 0 Fullscreen 1 Font 24/Smallcaps Map View 50x35 Zoom Use 0% Tactical HUD 1 Map Filters NONE Filters NONE Steam 0 RUN: fbeb6be8-6065-4fd6-b40c-0755f67bde5f